Cogmind - Beta 10.2 @@@ ROGUE MODE // 2021.02.03 @ 14:24:22 Player: Demise Result: Destroyed by as-32710 with Assembled Rifle Performance ------------- Evolutions (0) 0 Regions Visited (4) 800 Robots Destroyed (31) 155 Value Destroyed (772) 772 Prototype IDs (0) 0 Alien Tech Used (0) 0 Bonus (-53) -53 TOTAL SCORE: 1674 Bonus ------- Friendly Fire -53 Cogmind --------- Core Integrity 0/250 Matter 237/300 Energy 265/265 System Corruption 0% Temperature Cool (20) Movement Core (1450) Ox28 Location -9/Mines Parts ------- > --- POWER (1) -------- Improved Ion Engine > --- PROPULSION (2) --- (None) > --- UTILITY (2) ------ Humpback > --- WEAPON (2) ------- (None) > --- INVENTORY (24) --- Improved Ion Engine Light Nuclear Core Reinforced Deuterium Engine Fission Core Light Treads Large Storage Unit Large Storage Unit Large Storage Unit High-capacity Battery (400) High-capacity Matter Pod (200) Experimental Sensor Array Core Shielding Heavy Armor Plating Hacking Suite System Shield Recalibrator Mining Laser Plasma Cutter Peak State ------------ > --- POWER ------------ Light Nuclear Core > --- PROPULSION ------- Light Treads Light Treads > --- UTILITY ---------- Humpback > --- WEAPON ----------- EMP Blaster Mining Laser > --- INVENTORY -------- Improved Ion Engine Nuclear Core Reinforced Deuterium Engine Fission Core Light Treads Large Storage Unit Large Storage Unit Large Storage Unit High-capacity Battery High-capacity Matter Pod Experimental Sensor Array Core Shielding Heavy Armor Plating Hacking Suite System Shield Recalibrator Light Assault Rifle Improved Grenade Launcher Plasma Cutter Plasma Cutter [Rating: 15] Favorites ----------- Power Ion Engine Engine Ion Engine Power Core Light Nuclear Core Propulsion Light Treads Treads Light Treads Utility Large Storage Unit Storage Large Storage Unit Processor Signal Interpreter Protection Weapon Shielding Weapon EMP Blaster Energy Gun Small Laser Ballistic Gun Light Assault Rifle Launcher EMP Blaster Special Weapon Mining Laser Build | -11 -10 -10 -10 -9 ------- Run | Scr Mat Min Exi Min Slots Evolved . | . . . . . Power . | . . . . . Propulsion . | . . . . . Utility . | . . . . . Weapon . | . . . . . Parts Attached 36 | 4 17 10 1 4 Power 8 | . 5 2 . 1 Engine 7 | . 5 1 . 1 Core 1 | . . 1 . . Reactor . | . . . . . Propulsion 8 | 2 3 3 . . Treads 8 | 2 3 3 . . Leg . | . . . . . Wheel . | . . . . . Hover . | . . . . . Flight . | . . . . . Utility 6 | . 5 . 1 . Device . | . . . . . Storage 4 | . 3 . 1 . Processor 1 | . 1 . . . Hackware . | . . . . . Protection 1 | . 1 . . . Artifact . | . . . . . Weapon 14 | 2 4 5 . 3 Energy Gun 4 | 1 3 . . . Energy Cannon . | . . . . . Ballistic Gun 4 | 1 . 2 . 1 Ballistic Cannon . | . . . . . Launcher 3 | . . 2 . 1 Special Weapon 3 | . 1 1 . 1 Impact Weapon . | . . . . . Slashing Weapon . | . . . . . Piercing Weapon . | . . . . . Special Melee Weapon . | . . . . . Unidentified Prototypes . | . . . . . Parts Lost 7 | . 1 . . 6 Power . | . . . . . Propulsion 2 | . . . . 2 Utility . | . . . . . Weapon 5 | . 1 . . 4 Highest Loss Streak 6 | . 1 . . 6 Average Slot Usage (%) 93 | . 93 100 94 83 Engine 8 | . 12 10 . 2 Core 5 | . . 3 14 11 Treads 27 | . 28 28 28 27 Storage 21 | . 19 28 22 14 Energy Gun 10 | . 22 6 . . Ballistic Gun 6 | . 4 13 . 2 Launcher 6 | . . 6 14 13 Special Weapon 4 | . 1 . 14 11 Naked Turns . | . . . . . Heaviest Build 93 | 3 40 44 90 93 Greatest Support 40 | 3 40 40 40 40 Greatest Overweight (x) 28 | . 1 1 2 28 Average Overweight (x) . | . . . 1 2 Largest Inventory Capacity 24 | 4 16 16 24 24 Average Capacity 16 | 4 12 16 18 24 Most Carried 22 | 4 16 16 21 22 Average Carried 15 | 2 11 15 16 21 Final Capacity 24 | 4 16 16 24 24 Final Carried 21 | 4 16 16 21 19 Class Distribution -------------------- 69% | Mutant 22% | Hauler-Mutant 8% | Scavenger-Mutant Dominant Class ---------------- Mutant | -10/Materials Mutant | -10/Mines Mutant | -10/Exiles Hauler-Mutant | -9/Mines Resources | -11 -10 -10 -10 -9 ----------- Run | Scr Mat Min Exi Min Matter Collected 948 | 246 423 194 10 75 Remotely . | . . . . . Salvage Created 1251 | 121 476 370 . 284 Parts 65 | 5 33 22 . 5 Haulers Intercepted 2 | . 2 . . . Recyclers Shooed 1 | . . 1 . . Parts Field Recycled . | . . . . . Retrieved Matter . | . . . . . Parts Self-Destructed . | . . . . . Prevented . | . . . . . Kills | -11 -10 -10 -10 -9 ------- Run | Scr Mat Min Exi Min Combat Hostiles Destroyed 34 | . 7 12 . 15 Guns 17 | . 7 9 . 1 Cannons 1 | . . . . 1 AOE 16 | . . 3 . 13 Classes Destroyed 12 | 2 6 1 . 3 Builder 1 | . 1 . . . Tunneler 1 | 1 . . . . Hauler 2 | . 2 . . . Recycler 2 | 1 1 . . . Mechanic 1 | . 1 . . . Operator 1 | . . . . 1 Watcher 1 | . 1 . . . Swarmer 10 | . 3 7 . . Grunt 9 | . 4 3 . 2 Duelist 1 | . . . . 1 Sentry 2 | . . 2 . . Assembled 12 | . . . . 12 Best Kill Streak 12 | 2 8 3 . 12 Combat Bots Only 12 | . 6 3 . 12 Max Kills in Single Turn 3 | 1 1 1 . 3 Gunslinging . | . . . . . Exploded 3 | . . 1 . 3 Melee . | . . . . . Uniques/NPCs Destroyed . | . . . . . Combat | -11 -10 -10 -10 -9 -------- Run | Scr Mat Min Exi Min Damage Taken 1643 | . 270 485 . 888 Core 251 | . 58 81 . 112 Absorbed by Shields . | . . . . . Core Remaining (%) 100 | 100 . . . . Volleys Fired 138 | 6 54 51 . 27 Largest 2 | 2 2 2 . 1 Hottest 140 | 70 140 100 . 36 Shots Fired 226 | 12 107 80 . 27 Gun 178 | 12 104 59 . 3 Cannon . | . . . . . Launcher 38 | . . 16 . 22 Special 10 | . 3 5 . 2 Kinetic 77 | 6 38 30 . 3 Thermal 111 | 6 69 34 . 2 Explosive 3 | . . . . 3 Electromagnetic 35 | . . 16 . 19 Robot Hit Streak 18 | 2 18 10 . 3 Robot Miss Streak 6 | 3 6 2 . 1 Penetration Max . | . . . . . Secondary Targets 2 | . . 2 . . Max Gunslinging Chain 1 | . . 1 . . Shots Hit Robots 123 | 5 66 48 . 4 Core Hits 89 | 3 27 24 . 35 Critical Hits 2 | . 1 1 . . Critical Kills . | . . . . . Critical Parts Destroyed 2 | . 1 1 . . Melee Attacks . | . . . . . Impact . | . . . . . Slashing . | . . . . . Piercing . | . . . . . Sneak Attacks . | . . . . . Combat Hostiles . | . . . . . Follow-up Attacks . | . . . . . Damage Inflicted 2532 | 71 948 706 . 807 Guns 1194 | 71 665 433 . 25 Cannons . | . . . . . Explosions 1328 | . 283 273 . 772 Melee . | . . . . . Ramming . | . . . . . Kinetic 368 | 22 162 159 . 25 Thermal 1140 | 49 786 274 . 31 Explosive 395 | . . . . 395 Electromagnetic 629 | . . 273 . 356 Impact . | . . . . . Slashing . | . . . . . Piercing . | . . . . . Highest Corruption . | . . . . . Average Corruption . | . . . . . Corruption Purged . | . . . . . Overload Shots . | . . . . . Overflow Damage 191 | . 180 . . 11 Projectiles . | . . . . . Explosions 191 | . 180 . . 11 Melee . | . . . . . Knockbacks . | . . . . . Impact . | . . . . . Kinetic . | . . . . . Secondary . | . . . . . Self-Inflicted Damage 79 | . . . . 79 Shots 5 | . . . . 5 Rammed . | . . . . . Targets Rammed . | . . . . . Kicked . | . . . . . Crushed . | . . . . . Highest Temperature 238 | 40 238 210 . 19 Average Temperature 62 | 20 71 58 . 7 Received Heat Transfer 372 | . 129 111 . 132 Effects 1 | . . 1 . . Interference 1 | . . 1 . . Siege Activations . | . . . . . Robots Corrupted . | . . . . . Combat Hostiles . | . . . . . Parts Fried 3 | . . 1 . 2 Impact Corruptions . | . . . . . Robots Melted . | . . . . . Combat Hostiles . | . . . . . Parts Melted . | . . . . . Heat Transferred 2491 | 148 1515 741 . 87 Parts Sabotaged . | . . . . . Parts Stolen . | . . . . . Parts Stripped . | . . . . . Power Chain Reactions 1 | . . . . 1 Missiles Intercepted . | . . . . . Alert | -11 -10 -10 -10 -9 ------- Run | Scr Mat Min Exi Min Peak Influence 293 | 10 293 140 . 160 Initial 6 | . 6 . . . Average 72 | 2 91 64 . 49 Maximum Alert Level 1 | . 1 . . . Low Security (%) 93 | 100 85 100 . 100 Level 1 6 | . 14 . . . Level 2 . | . . . . . Level 3 . | . . . . . Level 4 . | . . . . . Level 5 . | . . . . . High Security . | . . . . . Max Security . | . . . . . Squads Dispatched 2 | . 1 1 . . Investigation 2 | . 1 1 . . Extermination . | . . . . . Reinforcement . | . . . . . Assault . | . . . . . Garrison . | . . . . . Intercept . | . . . . . Construction Impeded . | . . . . . Haulers Reinforced . | . . . . . Stealth | -11 -10 -10 -10 -9 --------- Run | Scr Mat Min Exi Min Distress Signals 2 | . 2 . . . Communications Jammed . | . . . . . Distress Signals . | . . . . . Times Spotted 58 | . 25 16 . 17 Peak Tracking Total 16 | . 6 3 . 16 Tactical Retreats 4 | . . 2 . 2 Traps | -11 -10 -10 -10 -9 ------- Run | Scr Mat Min Exi Min Traps Triggered . | . . . . . Indirectly . | . . . . . Trap Hack Attempts . | . . . . . Triggered . | . . . . . Disarmed . | . . . . . Reprogrammed . | . . . . . Reused . | . . . . . Traps Extracted . | . . . . . Installed . | . . . . . Triggered . | . . . . . Machines | -11 -10 -10 -10 -9 ---------- Run | Scr Mat Min Exi Min Machines Disabled 12 | . 2 3 . 7 Max in Single Turn 3 | . 2 2 . 3 Machines Sabotaged . | . . . . . Garrisons Compromised . | . . . . . Overloaded Fab Kills . | . . . . . Fab Network Shutdowns . | . . . . . Hacking | -11 -10 -10 -10 -9 --------- Run | Scr Mat Min Exi Min Machines Accessed 11 | . 9 1 1 . Terminals 6 | . 6 . . . Fabricators . | . . . . . Repair Stations 1 | . 1 . . . Recycling Units 2 | . 2 . . . Scanalyzers . | . . . . . Garrison Access . | . . . . . Total Hacks 35 | . 33 1 1 . Successful 27 | . 25 1 1 . Failed 8 | . 8 . . . Catastrophic 1 | . 1 . . . Database Lockouts . | . . . . . Manual 22 | . 22 . . . Terminals 19 | . 19 . . . Fabricators . | . . . . . Repair Stations 8 | . 8 . . . Recycling Units 6 | . 6 . . . Scanalyzers . | . . . . . Garrison Access . | . . . . . Terminal Hacks 8 | . 6 1 1 . Record 1 | . . . 1 . Part Schematic 2 | . 2 . . . Robot Analysis 3 | . 3 . . . Open Door 1 | . . 1 . . Zone Layout 1 | . 1 . . . Fabricator Hacks . | . . . . . Repair Station Hacks 8 | . 8 . . . Scan Component 4 | . 4 . . . Repair 4 | . 4 . . . Recycling Unit Hacks 2 | . 2 . . . Retrieve Components 2 | . 2 . . . Scanalyzer . | . . . . . Garrison Access Hacks . | . . . . . Unauthorized Hacks 9 | . 9 . . . Terminals 5 | . 5 . . . Assimilate 2 | . 2 . . . Botnet 2 | . 2 . . . Operators 1 | . 1 . . . Fabricators . | . . . . . Repair Stations . | . . . . . Recycling Units 4 | . 4 . . . Reject 2 | . 2 . . . Mask 2 | . 2 . . . Scanalyzers . | . . . . . Garrison Access . | . . . . . Data Cores Recovered . | . . . . . Used . | . . . . . Hacking Detections 9 | . 9 . . . Full Trace Events 3 | . 3 . . . Feedback Events . | . . . . . Feedback Blocked . | . . . . . Robot Schematics Acquired . | . . . . . Robots Built . | . . . . . Matter . | . . . . . Time . | . . . . . Total Robot Build Rating . | . . . . . Part Schematics Acquired 2 | . 2 . . . Parts Built . | . . . . . Matter . | . . . . . Time . | . . . . . Total Part Build Rating . | . . . . . Parts Repaired 4 | . 4 . . . Time 104 | . 104 . . . Parts Recycled . | . . . . . Recycled Matter . | . . . . . Retrieved Matter . | . . . . . Retrieved Components 13 | . 13 . . . Parts Scanalyzed . | . . . . . Part Schematics Acquired . | . . . . . Parts Damaged . | . . . . . Bothacking | -11 -10 -10 -10 -9 ------------ Run | Scr Mat Min Exi Min Used RIF Installer . | . . . . . Robots Hacked . | . . . . . Non-combat . | . . . . . Combat . | . . . . . Robot Hacks Applied . | . . . . . Relay Couplers Released . | . . . . . Robots Rewired . | . . . . . Allies Hacked . | . . . . . Hacks Repelled . | . . . . . Allies | -11 -10 -10 -10 -9 -------- Run | Scr Mat Min Exi Min Total Allies 2 | . 2 . . . Largest Group 2 | . 2 2 1 1 Highest-Rated Group 20 | . 20 20 10 10 Highest-Rated Ally 10 | . 10 10 10 10 Total Orders 5 | . 2 3 . . STAY 2 | . 1 1 . . FOLLOW 3 | . 1 2 . . Ally Attacks . | . . . . . Total Damage . | . . . . . Kills . | . . . . . Allies Corrupted . | . . . . . Allies Melted . | . . . . . Intel | -11 -10 -10 -10 -9 ------- Run | Scr Mat Min Exi Min Robot Analysis Total 3 | . 3 . . . Derelict Logs Recovered 3 | . . 2 . 1 Drone Launches . | . . . . . Drone Recoveries . | . . . . . Exploration | -11 -10 -10 -10 -9 ------------- Run | Scr Mat Min Exi Min Turns Passed 4618 | 46 1668 1417 731 756 Spaces Moved 2448 | 39 982 705 381 341 Core 335 | 39 295 . . 1 Treads 2113 | . 687 705 381 340 Legs . | . . . . . Wheels . | . . . . . Hover . | . . . . . Flight . | . . . . . Fastest Speed 50 | 50 50 160 160 200 Average Speed 160 | 50 132 171 186 204 Slowest Speed 1450 | 50 160 180 200 1450 Overloaded Moves . | . . . . . Propulsion Burnouts . | . . . . . Robots Hopped . | . . . . . Cave-ins Triggered . | . . . . . Exploration Rate (%) 66 | 3 100 97 68 64 Regions Visited 4 Branch Regions 3 Pre-discovered Areas 2 | . . 1 . 1 Known Exits Taken 1 | . 1 . . . Unknown Exits Taken 3 | 1 . 1 1 . Scrap Searched 2 | . . 1 . 1 Spaces Dug 20 | . 3 3 . 14 Terrain Destroyed 91 | . 45 5 . 41 Melee . | . . . . . Projectile 8 | . 3 5 . . AOE 83 | . 42 . . 41 Terrain Rammed . | . . . . . Walls Destroyed . | . . . . . Machines Disabled . | . . . . . Actions | -11 -10 -10 -10 -9 --------- Run | Scr Mat Min Exi Min Total 2923 | 52 1244 842 403 382 Wait 212 | . 150 51 3 8 Move 2444 | 38 981 704 380 341 Hop . | . . . . . Pick Up 59 | 4 30 8 17 . Fast Attach 13 | 4 3 4 1 1 Attach 10 | . 8 . . 2 Detach 5 | . 3 1 . 1 Swap 13 | . 6 6 . 1 Drop 29 | . 9 17 2 1 Fire 138 | 6 54 51 . 27 Melee . | . . . . . Ram . | . . . . . Kick . | . . . . . Crush . | . . . . . Escape Stasis . | . . . . . Rewire . | . . . . . Trap . | . . . . . Miscellaneous . | . . . . . Route ------- -11/Scrapyard -10/Materials (discovered 5 exits: *Mat x3 / *Min x2) -10/Mines (discovered 3 exits: *Mat x2 / *Exi) -10/Exiles -9/Mines (discovered 2 exits: [*Mat x2]) History --------- Turn | Location | Event 16 | -11/Scrapyard | Discovered new exit (range 14) 47 | -11/Scrapyard | Entered Materials 86 | -10/Materials | Discovered new exit (range 11) 89 | -10/Materials | Discovered new exit (range 11) 246 | -10/Materials | Discovered new exit (range 16) 300 | -10/Materials | Build established: Mutant 462 | -10/Materials | Discovered new exit (range 16) 676 | -10/Materials | Repaired Hcp. Battery 703 | -10/Materials | Repaired Lgt. Treads 730 | -10/Materials | Repaired Lgt. Treads 757 | -10/Materials | Repaired Lgt. Treads 803 | -10/Materials | Discovered new exit (range 3) 1314 | -10/Materials | Identified exit to Materials 1379 | -10/Materials | Identified exit to Mines 1715 | -10/Materials | Entered Mines 1715 | -10/Mines | Accompanied by 2 allies 1883 | -10/Mines | Deemed a non-threat by the Exiles lab entrance 1883 | -10/Mines | Discovered new exit (range 5) 2072 | -10/Mines | Discovered exit to Materials (range 6) 2254 | -10/Mines | Learned Materials security intel 2317 | -10/Mines | Learned location of Mines (-9) 2346 | -10/Mines | Core integrity fell below 50% 2594 | -10/Mines | Discovered exit to Materials (range 4) 2638 | -10/Mines | Build established: Scavenger-Mutant 2710 | -10/Mines | Met a Derelict shopkeep closing up shop 2858 | -10/Mines | Found a damaged Exp. Sensor Array with a note attached 2862 | -10/Mines | Found Prototype Device 3035 | -10/Mines | Build established: Mutant 3132 | -10/Mines | Entered Exiles 3132 | -10/Exiles | Found Exiles lab abandoned 3132 | -10/Exiles | Accompanied by 1 ally 3834 | -10/Exiles | Discovered new exit (range 14) 3863 | -10/Exiles | Entered Mines 3863 | -9/Mines | Accompanied by 1 ally 3870 | -9/Mines | Received a Rocket Launcher from a helpful Derelict 3895 | -9/Mines | Build established: Hauler-Mutant 3913 | -9/Mines | Discovered new exit (range 4) 3982 | -9/Mines | Met a Derelict bent on vengeance 4011 | -9/Mines | Discovered new exit (range 13) 4067 | -9/Mines | A weapon hastily lodged in a ceiling crevice suddenly fell to the ground 4203 | -9/Mines | Learned location of Zion (-7) 4565 | -9/Mines | Assembled infested the area 4616 | -9/Mines | Core integrity fell below 20% 4619 | -9/Mines | Destroyed by as-32710 with Assembled Rifle Last Messages --------------- 04565_ ALERT: Infestation in the mines, dispatching Demolisher response squad. 04571_ Lgt. Assault Rifle destroyed. 04572_ as-13483 destroyed. 04576_ as-08277 destroyed. 04578_ as-24476 destroyed. 04579_ Lgt. Treads destroyed. 04590_ as-67130 destroyed. 04590_ EMP Blaster destroyed. 04590_ Destroyed EMP Blaster. 04593_ as-52403 destroyed. 04593_ as-38255 destroyed. 04595_ Destroyed Asb. F-torch. 04595_ as-42705 destroyed. 04595_ as-35812 destroyed. 04601_ as-23948 destroyed. 04602_ Imp. Grenade Launcher destroyed. 04612_ as-76152 destroyed. 04613_ Lgt. Treads destroyed. 04615_ Plasma Cutter destroyed. 04615_ Dropped Rigged Nuclear Core. Map ----- +----------------------------------------------------+ | ??????????? ?## ##?????? | | ?????????? ### ???## #?????? | | ?????????? ##?? ?????# #?????? | | ???????????? ??????????# ##?????? | | ????????????? ???# #??????? | | ??????????????????# #### """ ##?????? | | ??????????????????#############??# """ #?????? | | ????????????????????????????????## """ #?????? | | ????????????????????????????????# #?????? | | ????????????????????????????????# #?????? | | ???????????????????????##???????## ##?????? | | ??????????????????????## #???????# ###??????? | | ???????????????????#### ###????## #????????? | | ???????????????????? ##????# #????????? | | ?????????????????????? #????# #????????? | | ???????????????????????# #????# #????????? | | ???????????????????????# #????# #????????? | | ???????????????????????# ###### #????????? | | ????????????????????????# #????????? | | ????????????????????????## ####### #####????? | | ?????????????????????????# #???### #????? | | ?????????????????????????# #???# ### #????? | | ???????????????????#?###?# #???## #?# #????? | | ???????????????????# # ?# #????# #?# #????? | | ??????????????????## ## #???## #?# #????? | | ??????##??????????# @ #??## #?# #????? | | ?????% ???###?# a %* #### ##?#!#????? | | ????? %% ## ## a% ##### ##??"%"????? | | ???????# % # a #??# ##???" "????? | | ???????# #?## ## #????"%"????? | | ???????# ##??###?# #????== ????? | | ??????# % #???????# #???? " ????? | | ????# ### #???????# #????"" ????? | | ?????? ??????## #???????# #????"" ????? | | ??????????????# #???????# #?????? ????? | | ??????????????# # ##???????# #?????? ????? | | ??????????????# #?#?????????# #?????? ????? | | ??????????????## ##???????????? ????????????? | | ???????????????####?????????????? ????????????? | | ????????????????????????????????? ????????????? | | ?????????????????????????????????#????????????? | | ??????????????????????????????????????????????? | | ??????????????????????????????????????????????? | | ??????????????????????????????????????????????? | | ??????????????????????????????????????????????? | | | | | | | | | | | +----------------------------------------------------+ Best States ------------- Heat Dissipation 25 Energy Generation 14 Energy Capacity 265 Matter Stores 300 Matter Capacity 300 Sight Range 16 Terrain Scan Density 10 Weapon Shielding 33 Evasion (%) 50 Recoil Reduction 2 Item Schematics ----------------- Hcp. Storage Unit | -10/Materials | Hacked Lrg. Storage Unit | -10/Materials | Hacked Robot Schematics ------------------ None Fabricated ------------ Nothing Alien Tech Used ----------------- None Achievements -------------- None Challenges ------------ None Game ------ Seed FieldThrusterTerrabomb Manual? 0 Play Time 00:30:18 Cumulative 267.1 hours Start 2021.02.03 @ 13:54:27 End 2021.02.03 @ 14:24:22 Sessions 1 Manual Loads 0 Difficulty Rogue Special Mode None Game No. 235 Rogue 235 Adventurer 0 Explorer 0 Win Type - Total 1 Types 0/0/0/1/0/0/0/0/0 Lore% 63 Gallery% 73 Achievement% 57 Wizard Run 0 Options --------- ASCII 0 Keyboard 1 Movement Numpad Keybinds 0 Fullscreen 1 Font 12/Terminus Map View 83x54 Tactical HUD 1 Map Filters NONE Filters NONE Steam 1 RUN: 2a75330b-606a-40de-a523-18936aa3aa49